fUSD/lending_fUSD_20240505
["ID","MTS","AMOUNT","RATE_DAILY","PERIOD"]
[325433102,1714883446846,-1555.81,0.00035616,8]
[325433104,1714883446855,-465.09557933,0.00035616,8]
[325433106,1714883446865,-500.0,0.00035616,8]
[325433108,1714883446875,-500.0,0.00035616,8]
[325433110,1714883446885,-691.39,0.00035616,8]
[325433112,1714883446894,-1020.92,0.00035616,8]
[325433114,1714883446904,-1312.26,0.00035616,8]
[325433115,1714883446914,-500.0,0.00035616,8]
[325433118,1714883446925,-2179.85,0.00035616,8]
[325433119,1714883446935,-1149.08,0.00035616,8]
[325433121,1714883446945,-500.0,0.00035616,8]
[325433124,1714883446955,-500.0,0.00035616,8]
[325433126,1714883446966,-597.20821166,0.00035616,8]
[325433128,1714883446976,-500.0,0.00035616,8]
[325433130,1714883446985,-1540.99,0.00035616,8]
[325433132,1714883446995,-500.0,0.00035616,8]
[325433134,1714883447004,-1733.63,0.00035616,8]
[325433136,1714883447013,-3243.09,0.00035616,8]
[325433138,1714883447023,-500.0,0.00035616,8]
[325433140,1714883447033,-950.5,0.00035616,8]
[325433142,1714883447042,-1591.2,0.00035616,8]
[325433144,1714883447051,-500.0,0.00035616,8]
[325433146,1714883447060,-500.0,0.00035616,8]
[325433148,1714883447069,-1531.41,0.00035616,8]
[325433150,1714883447079,-699.4,0.00035616,8]
[325433152,1714883447088,-500.0,0.00035616,8]
[325433154,1714883447097,-904.97,0.00035616,8]
[325433155,1714883447106,-500.0,0.00035616,8]
[325433158,1714883447116,-500.0,0.00035616,8]
[325433160,1714883447125,-1921.64,0.00035616,8]
[325433162,1714883447135,-500.0,0.00035616,8]
[325433164,1714883447144,-500.0,0.00035616,8]
[325433166,1714883447153,-882.98,0.00035616,8]
[325433168,1714883447162,-1196.94,0.00035616,8]
[325433170,1714883447172,-2180.29,0.00035616,7]
[325433171,1714883447181,-500.0,0.00035616,8]
[325433173,1714883447190,-873.01,0.00035616,8]
[325433175,1714883447200,-995.01,0.00035616,8]
[325433178,1714883447209,-1330.19,0.00035616,8]
[325433180,1714883447219,-1414.67,0.00035616,8]
[325433182,1714883447228,-500.0,0.00035616,8]
[325433184,1714883447238,-520.74,0.00035616,8]
[325433186,1714883447248,-500.0,0.00035616,8]
[325433188,1714883447257,-500.0,0.00035616,8]
[325433190,1714883447267,-500.0,0.00035616,2]
[325433192,1714883447276,-1795.55,0.00035616,8]
[325433194,1714883447286,-500.0,0.00035616,8]
[325433196,1714883447295,-500.0,0.00035616,8]
[325433198,1714883447305,-2156.67,0.00035616,8]
[325433200,1714883447314,-1209.01,0.00035616,8]
[325433202,1714883447323,-1767.45,0.00035616,8]
[325433204,1714883447332,-1598.16,0.00035616,8]
[325433206,1714883447341,-500.0,0.00035616,8]
[325433208,1714883447350,-967.66,0.00035616,8]
[325433210,1714883447359,-500.0,0.00035616,8]
[325433212,1714883447368,-506.19184709,0.00035616,8]
[325433214,1714883447378,-500.0,0.00035616,8]
[325433216,1714883447387,-500.0,0.00035616,8]
[325433218,1714883447396,-500.0,0.00035616,8]
[325433220,1714883447404,-500.0,0.00035616,2]
[325433222,1714883447414,-1024.47,0.00035616,8]
[325433224,1714883447423,-500.0,0.00035616,8]
[325433226,1714883447435,-719.38,0.00035616,8]
[325433228,1714883447444,-455.6494042,0.00035616,8]
[325433230,1714883447454,-640.68258447,0.00035616,8]
[325433232,1714883447463,-500.0,0.00035616,8]
[325433234,1714883447473,-500.0,0.00035616,8]
[325433236,1714883447483,-500.0,0.00035616,8]
[325433237,1714883447492,-500.0,0.00035616,8]
[325433239,1714883447501,-2370.02,0.00035616,8]
[325433241,1714883447513,-1090.63,0.00035616,8]
[325433243,1714883447523,-1654.49,0.00035616,8]
[325433249,1714883447622,-3118.44,0.00035616,8]
[325433250,1714883447632,-1194.44,0.00035616,8]
[325433251,1714883447641,-500.0,0.00035616,8]
[325433252,1714883447650,-1168.82,0.00035616,8]
[325433253,1714883447659,-500.0,0.00035616,8]
[325433254,1714883447669,-300.0,0.00035616,7]
[325433256,1714883447678,-500.0,0.00035616,8]
[325433258,1714883447688,-916.21,0.00035616,8]
[325433260,1714883447698,-731.75,0.00035616,8]
[325433263,1714883447708,-2547.75,0.00035616,8]
[325433264,1714883447719,-500.0,0.00035616,8]
[325433267,1714883447729,-1020.7,0.00035616,8]
[325433268,1714883447739,-2147.5,0.00035616,8]
[325433271,1714883447749,-2992.05,0.00035616,8]
[325433273,1714883447759,-500.0,0.00035616,8]
[325433275,1714883447768,-705.55,0.00035616,8]
[325433277,1714883447779,-745.2,0.00035616,8]
[325433279,1714883447789,-870.34,0.00035616,8]
[325433281,1714883447798,-994.81,0.00035616,8]
[325433282,1714883447808,-500.0,0.00035616,8]
[325433285,1714883447818,-500.0,0.00035616,8]
[325433287,1714883447827,-796.23,0.00035616,8]
[325433289,1714883447839,-500.0,0.00035616,8]
[325433290,1714883447848,-1060.85,0.00035616,8]
[325433292,1714883447858,-500.0,0.00035616,8]
[325433294,1714883447867,-500.0,0.00035616,8]
[325433297,1714883447876,-2426.91,0.00035616,8]
[325433299,1714883447886,-1722.11,0.00035616,8]
[325433301,1714883447895,-564.21,0.00035616,8]
[325433302,1714883447904,-1833.62,0.00035616,2]
[325433304,1714883447914,-500.0,0.00035616,8]
[325433307,1714883447923,-500.0,0.00035616,8]
[325433309,1714883447932,-771.97,0.00035616,8]
[325433311,1714883447942,-1115.4,0.00035616,8]
[325433312,1714883447951,-502.07,0.00035616,8]
[325433314,1714883447961,-1153.47,0.00035616,8]
[325433316,1714883447970,-500.0,0.00035616,8]
[325433318,1714883447980,-1857.56,0.00035616,8]
[325433320,1714883447989,-2409.25,0.00035616,8]
[325433322,1714883447999,-500.0,0.00035616,8]
[325433324,1714883448008,-1397.92,0.00035616,8]
[325433326,1714883448018,-2045.65,0.00035616,8]
[325433328,1714883448029,-998.89,0.00035616,8]
[325433330,1714883448038,-500.0,0.00035616,8]
[325433332,1714883448047,-959.01,0.00035616,8]
[325433335,1714883448058,-500.0,0.00035616,8]
[325433337,1714883448069,-500.0,0.00035616,8]
[325433339,1714883448079,-636.29,0.00035616,8]
[325433340,1714883448088,-500.0,0.00035616,8]
[325433342,1714883448098,-1558.96,0.00035616,8]
[325433345,1714883448108,-500.0,0.00035616,7]
[325433346,1714883448116,-532.3,0.00035616,8]
[325433347,1714883448126,-617.8,0.00035616,8]
[325433348,1714883448135,-500.0,0.00035616,8]
[325433349,1714883448144,-500.0,0.00035616,8]
[325433350,1714883448153,-841.31,0.00035616,8]
[325433351,1714883448163,-1044.05,0.00035616,8]
[325433352,1714883448172,-500.0,0.00035616,8]
[325433353,1714883448181,-901.08,0.00035616,8]
[325433354,1714883448191,-681.66,0.00035616,8]
[325433355,1714883448200,-707.36,0.00035616,8]
[325433356,1714883448209,-500.0,0.00035616,8]
[325433357,1714883448218,-1238.29,0.00035616,8]
[325433358,1714883448228,-1373.65,0.00035616,2]
[325433359,1714883448237,-2003.32,0.00035616,8]
[325433360,1714883448246,-500.0,0.00035616,8]
[325433361,1714883448255,-565.48,0.00035616,8]
[325433362,1714883448264,-500.0,0.00035616,8]
[325433363,1714883448273,-500.0,0.00035616,8]
[325433364,1714883448282,-503.43668004,0.00035616,8]
[325433365,1714883448293,-500.0,0.00035616,8]
[325433366,1714883448302,-1242.25,0.00035616,8]
[325433367,1714883448311,-1120.84,0.00035616,8]
[325433368,1714883448321,-500.0,0.00035616,8]
[325433369,1714883448330,-687.42,0.00035616,8]
[325433370,1714883448340,-781.71,0.00035616,8]
[325433371,1714883448349,-646.97,0.00035616,8]
[325433372,1714883448358,-2075.73,0.00035616,8]
[325433373,1714883448367,-514.97,0.00035616,8]
[325433374,1714883448377,-913.64,0.00035616,8]
[325433375,1714883448387,-500.0,0.00035616,2]
[325433376,1714883448395,-1747.45,0.00035616,8]
[325433377,1714883448404,-500.0,0.00035616,8]
[325433378,1714883448414,-1582.47,0.00035616,8]
[325433379,1714883448423,-873.84,0.00035616,8]
[325433380,1714883448434,-1238.02,0.00035616,8]
[325433381,1714883448445,-500.0,0.00035616,8]
[325433382,1714883448454,-1777.63,0.00035616,8]
[325433383,1714883448463,-504.46,0.00035616,8]
[325433384,1714883448471,-768.14,0.00035616,8]
[325433385,1714883448482,-852.03,0.00035616,8]
[325433386,1714883448491,-1060.24,0.00035616,8]
[325433387,1714883448500,-500.0,0.00035616,8]
[325433388,1714883448511,-2206.44,0.00035616,8]
[325433389,1714883448520,-500.0,0.00035616,8]
[325433390,1714883448530,-500.0,0.00035616,8]
[325433391,1714883448539,-500.0,0.00035616,8]
[325433392,1714883448549,-500.0,0.00035616,8]
[325433393,1714883448558,-684.67,0.00035616,8]
[325433394,1714883448567,-957.46,0.00035616,8]
[325433395,1714883448576,-2202.25,0.00035616,8]
[325433396,1714883448586,-1310.68,0.00035616,8]
[325433397,1714883448595,-3015.3,0.00035616,8]
[325433398,1714883448606,-674.8,0.00035616,8]
[325433399,1714883448615,-632.76,0.00035616,8]
[325433400,1714883448626,-754.77,0.00035616,8]
[325433401,1714883448635,-1740.17,0.00035616,8]
[325433402,1714883448644,-500.0,0.00035616,8]
[325433403,1714883448653,-854.56,0.00035616,8]
[325433404,1714883448663,-500.0,0.00035616,8]
[325433405,1714883448671,-1322.78,0.00035616,8]
[325433406,1714883448681,-500.0,0.00035616,8]
[325433407,1714883448691,-500.0,0.00035616,8]
[325433408,1714883448700,-2063.66,0.00035616,8]
[325433409,1714883448709,-615.2,0.00035616,8]
[325433410,1714883448719,-500.0,0.00035616,8]
[325433411,1714883448727,-500.0,0.00035616,8]
[325433412,1714883448737,-1336.97,0.00035616,8]
[325433413,1714883448746,-500.0,0.00035616,8]
[325433414,1714883448756,-1787.83,0.00035616,8]
[325433415,1714883448765,-684.53,0.00035616,8]
[325433416,1714883448775,-1697.57,0.00035616,8]
[325433417,1714883448784,-791.62,0.00035616,8]
[325433418,1714883448794,-515.65827499,0.00035616,8]
[325433419,1714883448803,-891.71,0.00035616,8]
[325433420,1714883448812,-689.14,0.00035616,8]
[325433421,1714883448822,-631.42,0.00035616,8]
[325433422,1714883448831,-2242.73,0.00035616,8]
[325433423,1714883448842,-500.0,0.00035616,8]
[325433424,1714883448851,-500.0,0.00035616,8]
[325433425,1714883448860,-500.0,0.00035616,8]
[325433426,1714883448870,-500.0,0.00035616,8]
[325433427,1714883448879,-500.0,0.00035616,8]
[325433428,1714883448889,-591.49,0.00035616,8]
[325433429,1714883448898,-500.0,0.00035616,8]
[325433430,1714883448907,-500.0,0.00035616,8]
[325433431,1714883448916,-1265.46,0.00035616,8]
[325433432,1714883448925,-1275.15,0.00035616,8]
[325433433,1714883448935,-809.62,0.00035616,8]
[325433434,1714883448944,-500.0,0.00035616,8]
[325433435,1714883448953,-540.32,0.00035616,8]
[325433436,1714883448962,-1596.26,0.00035616,8]
[325433437,1714883448971,-1585.31,0.00035616,8]
[325433438,1714883448980,-1052.09,0.00035616,8]
[325433439,1714883448990,-500.0,0.00035616,8]
[325433440,1714883448999,-543.92,0.00035616,8]
[325433441,1714883449008,-500.0,0.00035616,8]
[325433442,1714883449017,-500.0,0.00035616,8]
[325433443,1714883449026,-1592.2,0.00035616,8]
[325433444,1714883449036,-873.7,0.00035616,8]
[325433445,1714883449046,-1267.91,0.00035616,8]
[325433446,1714883449055,-639.3,0.00035616,8]
[325433447,1714883449064,-500.0,0.00035616,8]
[325433448,1714883449073,-831.73,0.00035616,8]
[325433449,1714883449083,-1490.86,0.00035616,8]
[325433450,1714883449092,-719.52,0.00035616,8]
[325433451,1714883449101,-1873.84,0.00035616,8]
[325433452,1714883449110,-150.31051107,0.00035616,8]
[325433453,1714883449119,-559.12,0.00035616,8]
[325433454,1714883449128,-500.0,0.00035616,8]
[325433455,1714883449137,-500.0,0.00035616,8]
[325433456,1714883449146,-1517.46,0.00035616,8]
[325433457,1714883449155,-500.0,0.00035616,8]
[325433458,1714883449164,-653.8,0.00035616,8]
[325433459,1714883449173,-1093.29,0.00035616,8]
[325433460,1714883449182,-682.92,0.00035616,8]
[325433461,1714883449191,-1117.74,0.00035616,8]
[325433462,1714883449201,-2037.71,0.00035616,8]
[325433463,1714883449210,-1619.43,0.00035616,8]
[325433464,1714883449219,-729.31,0.00035616,8]
[325433465,1714883449229,-500.0,0.00035616,8]
[325433466,1714883449238,-266.83182445,0.00035616,8]
[325433467,1714883449247,-994.98,0.00035616,8]
[325433468,1714883449259,-910.67,0.00035616,8]
[325433469,1714883449269,-1302.38,0.00035616,8]
[325433470,1714883449279,-873.1,0.00035616,8]
[325433471,1714883449289,-722.59,0.00035616,8]
[325433472,1714883449298,-500.0,0.00035616,8]
[325433473,1714883449307,-2821.7,0.00035616,2]
[325433474,1714883449316,-649.57,0.00035616,8]
[325433475,1714883449326,-5000.0,0.00035616,8]
[325433476,1714883449335,-1454.43,0.00035616,8]
[325433477,1714883449344,-1073.9,0.00035616,8]
[325433478,1714883449354,-1173.56,0.00035616,8]
[325433479,1714883449363,-908.55,0.00035616,8]
[325433480,1714883449372,-1116.29,0.00035616,8]
[325433481,1714883449381,-539.93144414,0.00035616,4]
[325433482,1714883449390,-541.21,0.00035616,8]
[325433483,1714883449399,-1161.66,0.00035616,8]
[325433484,1714883449409,-500.0,0.00035616,8]
[325433485,1714883449418,-706.72,0.00035616,8]
[325433486,1714883449428,-726.07,0.00035616,8]
[325433487,1714883449440,-1572.05,0.00035616,8]
[325433488,1714883449450,-1373.29,0.00035616,8]
[325433489,1714883449459,-649.7,0.00035616,8]
[325433490,1714883449468,-500.0,0.00035616,8]
[325433491,1714883449478,-1345.07,0.00035616,8]
[325433492,1714883449488,-500.0,0.00035616,8]
[325433493,1714883449497,-1629.04,0.00035616,8]
[325433494,1714883449506,-2235.18,0.00035616,8]
[325433495,1714883449518,-2270.05,0.00035616,8]
[325433496,1714883449527,-513.82,0.00035616,8]
[325433497,1714883449538,-500.0,0.00035616,8]
[325433498,1714883449547,-500.0,0.00035616,8]
[325433499,1714883449556,-500.0,0.00035616,8]
[325433500,1714883449565,-1533.72,0.00035616,8]
[325433501,1714883449574,-847.41,0.00035616,8]
[325433502,1714883449583,-500.0,0.00035616,8]
[325433503,1714883449592,-1406.5,0.00035616,8]
[325433504,1714883449602,-644.9,0.00035616,8]
[325433505,1714883449611,-497.06554311,0.00035616,8]
[325433506,1714883449620,-691.02,0.00035616,8]
[325433507,1714883449629,-500.0,0.00035616,8]
[325433508,1714883449639,-500.0,0.00035616,8]
[325433509,1714883449648,-1490.87,0.00035616,8]
[325433510,1714883449657,-500.0,0.00035616,8]
[325433511,1714883449666,-1174.89,0.00035616,8]
[325433512,1714883449675,-1104.64,0.00035616,8]
[325433513,1714883449685,-500.0,0.00035616,8]
[325433514,1714883449694,-1515.42,0.00035616,8]
[325433515,1714883449703,-335.68467834,0.00035616,8]
[325433516,1714883449712,-1113.7,0.00035616,8]
[325433517,1714883449721,-1235.01,0.00035616,8]
[325433518,1714883449730,-500.0,0.00035616,8]
[325433519,1714883449740,-650.52,0.00035616,8]
[325433520,1714883449749,-743.41,0.00035616,8]
[325433521,1714883449758,-1849.71,0.00035616,8]
[325433522,1714883449767,-1562.48,0.00035616,8]
[325433523,1714883449777,-500.0,0.00035616,8]
[325433524,1714883449786,-3040.11,0.00035616,8]
[325433525,1714883449796,-500.0,0.00035616,8]
[325433526,1714883449805,-500.0,0.00035616,8]
[325433527,1714883449816,-500.0,0.00035616,8]
[325433528,1714883449825,-2995.66,0.00035616,8]
[325433529,1714883449834,-903.77,0.00035616,8]
[325433530,1714883449844,-500.0,0.00035616,8]
[325433531,1714883449854,-2141.83,0.00035616,8]
[325433532,1714883449863,-748.65,0.00035616,8]
[325433533,1714883449872,-500.0,0.00035616,8]
[325433534,1714883449881,-254.70813885,0.00035616,8]
[325433535,1714883449890,-500.0,0.00035616,8]
[325433536,1714883449899,-2982.3,0.00035616,8]
[325433537,1714883449908,-634.23,0.00035616,8]
[325433538,1714883449918,-1652.07,0.00035616,8]
[325433539,1714883449927,-500.0,0.00035616,8]
[325433540,1714883449936,-512.54,0.00035616,8]
[325433541,1714883449946,-1672.62,0.00035616,8]
[325433542,1714883449955,-500.0,0.00035616,8]
[325433543,1714883449964,-874.5,0.00035616,8]
[325433544,1714883449973,-500.0,0.00035616,8]
[325433545,1714883449983,-500.0,0.00035616,8]
[325433546,1714883449991,-690.5,0.00035616,8]
[325433547,1714883450001,-1624.39,0.00035616,8]
[325433548,1714883450010,-886.73,0.00035616,8]
[325433549,1714883450019,-500.0,0.00035616,8]
[325433550,1714883450028,-500.0,0.00035616,8]
[325433551,1714883450038,-510.99362233,0.00035616,8]
[325433552,1714883450047,-720.17,0.00035616,8]
[325433553,1714883450056,-2376.7,0.00035616,8]
[325433554,1714883450065,-578.38,0.00035616,8]
[325433555,1714883450074,-602.44,0.00035616,8]
[325433556,1714883450083,-500.0,0.00035616,8]
[325433557,1714883450092,-1000.0,0.00035616,8]
[325433558,1714883450102,-738.05,0.00035616,8]
[325433559,1714883450111,-721.12,0.00035616,8]
[325433560,1714883450120,-1944.11,0.00035616,8]
[325433561,1714883450129,-1074.74,0.00035616,8]
[325433562,1714883450139,-777.29,0.00035616,8]
[325433563,1714883450148,-818.15,0.00035616,8]
[325433564,1714883450157,-500.0,0.00035616,8]
[325433565,1714883450166,-500.0,0.00035616,8]
[325433566,1714883450176,-500.0,0.00035616,8]
[325433567,1714883450186,-1201.32,0.00035616,8]
[325433568,1714883450195,-500.0,0.00035616,8]
[325433569,1714883450204,-619.82,0.00035616,8]
[325433570,1714883450213,-500.0,0.00035616,8]
[325433571,1714883450223,-500.0,0.00035616,8]
[325433572,1714883450240,-500.0,0.00035616,8]
[325433573,1714883450249,-1876.19,0.00035616,8]
[325433574,1714883450258,-500.0,0.00035616,8]
[325433575,1714883450268,-500.0,0.00035616,8]
[325433576,1714883450277,-1432.04,0.00035616,8]
[325433577,1714883450287,-3019.81,0.00035616,8]
[325433578,1714883450296,-500.0,0.00035616,8]
[325433579,1714883450306,-1563.78,0.00035616,8]
[325433580,1714883450315,-577.13,0.00035616,8]
[325433581,1714883450324,-1128.34,0.00035616,8]
[325433582,1714883450333,-1772.53,0.00035616,8]
[325433583,1714883450342,-500.0,0.00035616,8]
[325433584,1714883450351,-500.0,0.00035616,8]
[325433585,1714883450360,-1509.43,0.00035616,8]
[325433586,1714883450370,-1134.11,0.00035616,8]
[325433587,1714883450379,-500.0,0.00035616,8]
[325433588,1714883450388,-1337.31,0.00035616,8]
[325433589,1714883450397,-598.34,0.00035616,8]
[325433590,1714883450406,-1503.17,0.00035616,8]
[325433591,1714883450416,-500.0,0.00035616,8]
[325433592,1714883450425,-1355.66,0.00035616,8]
[325433593,1714883450436,-4000.0,0.00035616,30]
[325433594,1714883450446,-1570.6,0.00035616,8]
[325433595,1714883450456,-1662.87,0.00035616,8]
[325433596,1714883450465,-1660.01,0.00035616,8]
[325433597,1714883450475,-500.0,0.00035616,8]
[325433598,1714883450484,-782.3,0.00035616,8]
[325433599,1714883450493,-3622.0,0.00035616,8]
[325433600,1714883450503,-892.3,0.00035616,8]
[325433601,1714883450514,-500.0,0.00035616,8]
[325433602,1714883450523,-1301.0,0.00035616,8]
[325433603,1714883450533,-500.0,0.00035616,8]
[325433604,1714883450543,-685.84,0.00035616,8]
[325433605,1714883450552,-1386.54,0.00035616,8]
[325433606,1714883450561,-748.65,0.00035616,8]
[325433607,1714883450570,-1289.0,0.00035616,8]
[325433608,1714883450580,-582.95,0.00035616,8]
[325433609,1714883450589,-500.0,0.00035616,8]
[325433610,1714883450598,-888.79,0.00035616,8]
[325433611,1714883450607,-723.61,0.00035616,8]
[325433612,1714883450616,-500.0,0.00035616,8]
[325433613,1714883450626,-3167.58,0.00035616,8]
[325433614,1714883450635,-500.0,0.00035616,8]
[325433615,1714883450645,-2086.15,0.00035616,8]
[325433616,1714883450654,-3128.63,0.00035616,8]
[325433617,1714883450663,-500.0,0.00035616,8]
[325433618,1714883450672,-500.0,0.00035616,8]
[325433619,1714883450682,-1789.84,0.00035616,8]
[325433620,1714883450692,-500.0,0.00035616,8]
[325433621,1714883450701,-1341.95,0.00035616,8]
[325433622,1714883450710,-500.0,0.00035616,8]
[325433623,1714883450720,-920.54,0.00035616,8]
[325433624,1714883450729,-500.0,0.00035616,8]
[325433625,1714883450739,-534.31,0.00035616,8]
[325433626,1714883450748,-628.24,0.00035616,8]
[325433627,1714883450758,-500.0,0.00035616,8]
[325433628,1714883450767,-500.0,0.00035616,8]
[325433629,1714883450776,-2996.71,0.00035616,8]
[325433630,1714883450786,-985.72,0.00035616,8]
[325433631,1714883450795,-13548.6,0.00035616,8]
[325433632,1714883450805,-500.0,0.00035616,8]
[325433633,1714883450814,-500.0,0.00035616,8]
[325433634,1714883450824,-1794.34,0.00035616,8]
[325433635,1714883450833,-2351.42,0.00035616,8]
[325433636,1714883450842,-505.83831985,0.00035616,8]
[325433637,1714883450852,-783.33,0.00035616,8]
[325433638,1714883450861,-217.8176666,0.00035616,8]
[325433639,1714883450871,-5698.51,0.00035616,8]
[325433640,1714883450880,-1576.98,0.00035616,8]
[325433641,1714883450890,-957.19,0.00035616,8]
[325433642,1714883450900,-500.0,0.00035616,8]
[325433643,1714883450909,-6200.64,0.00035616,8]
[325433644,1714883450919,-1430.18,0.00035616,8]
[325433645,1714883450929,-914.27,0.00035616,8]
[325433646,1714883450938,-665.8,0.00035616,8]
[325433647,1714883450947,-500.0,0.00035616,8]
[325433648,1714883450957,-500.0,0.00035616,8]
[325433649,1714883450966,-1498.77,0.00035616,8]
[325433650,1714883450975,-500.0,0.00035616,8]
[325433651,1714883450984,-701.0,0.00035616,8]
[325433652,1714883450994,-500.0,0.00035616,8]
[325433653,1714883451003,-503.04,0.00035616,8]
[325433654,1714883451013,-2975.19,0.00035616,8]
[325433655,1714883451022,-681.57,0.00035616,8]
[325433656,1714883451033,-589.57,0.00035616,8]
[325433657,1714883451043,-592.69,0.00035616,8]
[325433658,1714883451052,-787.63,0.00035616,8]
[325433659,1714883451061,-500.0,0.00035616,8]
[325433660,1714883451071,-500.0,0.00035616,8]
[325433661,1714883451081,-9873.52,0.00035616,8]
[325433662,1714883451090,-500.0,0.00035616,8]
[325433663,1714883451099,-500.0,0.00035616,8]
[325433664,1714883451109,-500.0,0.00035616,8]
[325433665,1714883451119,-500.0,0.00035616,8]
[325433666,1714883451128,-895.13,0.00035616,8]
[325433667,1714883451138,-500.0,0.00035616,8]
[325433668,1714883451148,-2294.06,0.00035616,8]
[325433669,1714883451158,-973.23,0.00035616,8]
[325433670,1714883451167,-500.0,0.00035616,8]
[325433671,1714883451177,-1651.83,0.00035616,8]
[325433672,1714883451186,-516.96869348,0.00035616,8]
[325433673,1714883451196,-3633.82,0.00035616,8]
[325433674,1714883451206,-540.34,0.00035616,8]
[325433675,1714883451215,-500.0,0.00035616,8]
[325433676,1714883451225,-2384.19,0.00035616,8]
[325433677,1714883451234,-1342.45412427,0.00035616,8]
[325433678,1714883451289,-352.61587573,0.00035616,8]
[325433679,1714883451298,-500.0,0.00035616,8]
[325433680,1714883451308,-13238.22,0.00035616,8]
[325433681,1714883451317,-2035.06,0.00035616,8]
[325433682,1714883451326,-1650.47,0.00035616,8]
[325433683,1714883451336,-500.0,0.00035616,8]
[325433684,1714883451346,-501.91310378,0.00035616,8]
[325433685,1714883451355,-1370.09,0.00035616,8]
[325433686,1714883451365,-500.0,0.00035616,8]
[325433687,1714883451374,-710.71,0.00035616,8]
[325433688,1714883451384,-502.13442302,0.00035616,8]
[325433689,1714883451394,-670.7,0.00035616,8]
[325433690,1714883451403,-1225.3,0.00035616,8]
[325433691,1714883451413,-1731.96,0.00035616,8]
[325433692,1714883451423,-2573.11430147,0.00035616,8]
[325433693,1714883454917,-1000.0,0.00034814,2]
[325433953,1714884631644,-12592.9554049,0.0001248,2]
[325433955,1714884631715,-2232.5325917,0.0001248,2]
[325433956,1714884631789,-3148.37360163,0.0001248,2]
[325433957,1714884631803,-6375.58645466,0.0001248,2]
[325433958,1714884631815,-1974.8225,0.0001248,2]
[325433959,1714884631826,-599.7,0.0001248,2]
[325433960,1714884631916,-2183.7396,0.0001248,2]
[325433961,1714884637689,-895.08132252,0.0001248,2]
[325433962,1714884637965,-19778.06958133,0.0001248,2]
[325433963,1714884637974,-267.83236721,0.00017057,2]
[325433964,1714884637983,-157.24133803,0.00017058,2]
[325433965,1714884637993,-300.0,0.00017159,2]
[325433966,1714884638002,-300.92751588,0.00019178,2]
[325433967,1714884638012,-547.35752792,0.00019178,2]
[325433968,1714884638021,-906.73911762,0.00019178,2]
[325433969,1714884638031,-167.58951255,0.00019178,2]
[325433970,1714884638041,-568.03222421,0.00019178,2]
[325433971,1714884638051,-22801.43133095,0.00019178,2]
[325433972,1714884638060,-399.00468224,0.00019178,2]
[325433973,1714884638069,-500.0,0.00019178,2]
[325433974,1714884638078,-220.30995611,0.00019178,2]
[325433975,1714884638088,-500.0,0.00019645,2]
[325433976,1714884638097,-11359.0,0.00019645,2]
[325433977,1714884638106,-150.99,0.00019645,2]
[325433978,1714884638115,-499.99,0.00019645,2]
[325433979,1714884638124,-500.0,0.00019654,2]
[325433980,1714884638134,-500.0,0.00019662,2]
[325433981,1714884638143,-500.0,0.00019671,2]
[325433982,1714884638152,-500.0,0.0001968,2]